lending/lending_fUSD_20250808
["ID","MTS","AMOUNT","RATE_DAILY","PERIOD"]
[378036816,1754674401971,-538.44,0.00024418,2]
[378036817,1754674401983,-447.97,0.00024418,2]
[378036818,1754674401995,-947.0,0.00024418,2]
[378036819,1754674402004,-1798.0,0.00024418,2]
[378036820,1754674402013,-977.0,0.00024418,2]
[378036821,1754674402023,-519.0,0.00024419,11]
[378036822,1754674402032,-155.776285,0.00024419,2]
[378036823,1754674402040,-475.15,0.00024419,2]
[378036824,1754674402050,-197.62129312,0.00024419,2]
[378036825,1754674402059,-183.659282,0.00024419,2]
[378036826,1754674402068,-613.14,0.00024419,2]
[378036827,1754674402078,-319.82,0.00024419,2]
[378036828,1754674402086,-487.53,0.00024419,2]
[378036829,1754674402095,-470.26,0.00024419,2]
[378036830,1754674402108,-549.73869687,0.00024419,2]
[378036831,1754674402117,-580.1,0.00024419,2]
[378036832,1754674402126,-462.27,0.00024419,2]
[378036833,1754674402135,-300.3740827,0.00024419,2]
[378036834,1754674402143,-479.7,0.00024419,2]
[378036835,1754674402155,-568.03,0.00024419,2]
[378036836,1754674402164,-421.44,0.00024419,2]
[378036837,1754674402173,-418.64,0.00024419,2]
[378036838,1754674402185,-504.49,0.00024419,2]
[378036839,1754674402194,-700.9,0.00024419,2]
[378036840,1754674402203,-520.77,0.00024419,2]
[378036841,1754674402212,-484.85,0.00024419,2]
[378036842,1754674402221,-432.17,0.00024419,2]
[378036843,1754674402230,-456.42,0.00024419,2]
[378036844,1754674402239,-1178.17,0.00024419,2]
[378036845,1754674402247,-400.0,0.00024419,2]
[378036846,1754674402256,-534.77,0.00024419,2]
[378036847,1754674402266,-435.31,0.00024419,2]
[378036848,1754674402276,-4517.84,0.00024419,2]
[378036849,1754674402286,-477.72,0.00024419,2]
[378036850,1754674402295,-4062.08,0.00024419,2]
[378036851,1754674402304,-2162.28,0.00024419,2]
[378036852,1754674402313,-788.52,0.00024419,2]
[378036853,1754674402323,-735.5,0.00024419,2]
[378036854,1754674402331,-1368.24,0.00024419,2]
[378036855,1754674402340,-606.57,0.00024419,2]
[378036856,1754674402350,-691.64,0.00024419,2]
[378036857,1754674402359,-504.23,0.00024419,2]
[378036858,1754674402368,-672.8,0.00024419,2]
[378036859,1754674402377,-711.68,0.00024419,2]
[378036860,1754674402386,-1187.72,0.00024419,2]
[378036861,1754674402395,-450.77,0.00024419,2]
[378036862,1754674402404,-767.72,0.00024419,2]
[378036863,1754674402413,-271.22768126,0.00024419,2]
[378036864,1754674402422,-692.39,0.00024419,2]
[378036865,1754674402431,-411.37,0.00024419,2]
[378036866,1754674402440,-460.18,0.00024419,2]
[378036867,1754674402450,-311.79215831,0.00024419,2]
[378036868,1754674402459,-680.33,0.00024419,2]
[378036869,1754674402469,-418.64,0.00024419,2]
[378036870,1754674402478,-557.2,0.00024419,2]
[378036871,1754674402487,-1471.83,0.00024419,2]
[378036872,1754674402497,-1053.65,0.00024419,2]
[378036873,1754674402506,-436.5,0.00024419,2]
[378036874,1754674402515,-591.98,0.00024419,2]
[378036875,1754674402526,-334.41766788,0.00024419,2]
[378036876,1754674402535,-1359.72,0.00024419,2]
[378036877,1754674402545,-439.47,0.00024419,2]
[378036878,1754674402553,-820.42,0.00024419,2]
[378036879,1754674402563,-444.75,0.00024419,2]
[378036880,1754674402572,-540.05,0.00024419,2]
[378036881,1754674402583,-400.0,0.00024419,2]
[378036882,1754674402593,-1098.38,0.00024419,2]
[378036883,1754674402602,-1065.2,0.00024419,2]
[378036884,1754674402611,-475.1,0.00024419,2]
[378036885,1754674402620,-493.47,0.00024419,2]
[378036886,1754674402630,-505.49,0.00024419,2]
[378036887,1754674402639,-663.95,0.00024419,2]
[378036888,1754674402649,-664.58,0.00024419,2]
[378036889,1754674402659,-412.55,0.00024419,2]
[378036890,1754674402669,-552.2,0.00024419,2]
[378036891,1754674402678,-795.59,0.00024419,2]
[378036892,1754674402687,-1009.8,0.00024419,2]
[378036893,1754674402697,-496.49,0.00024419,2]
[378036894,1754674402706,-391.65545148,0.00024419,2]
[378036895,1754674402716,-808.39,0.00024419,2]
[378036896,1754674402725,-242.32233114,0.00024419,2]
[378036897,1754674402734,-758.91,0.00024419,2]
[378036898,1754674402743,-794.09,0.00024419,2]
[378036899,1754674402752,-485.06,0.00024419,2]
[378036900,1754674402762,-405.9,0.00024419,2]
[378036901,1754674402771,-1155.05,0.00024419,2]
[378036902,1754674402780,-860.42,0.00024419,2]
[378036903,1754674402790,-521.07,0.00024419,2]
[378036904,1754674402800,-497.38,0.00024419,2]
[378036905,1754674402810,-400.0,0.00024419,2]
[378036906,1754674402819,-643.05,0.00024419,2]
[378036907,1754674402829,-675.98,0.00024419,2]
[378036908,1754674402839,-489.19,0.00024419,2]
[378036909,1754674402848,-760.76,0.00024419,2]
[378036910,1754674402858,-576.62,0.00024419,2]
[378036911,1754674402867,-1322.96,0.00024419,2]
[378036912,1754674402876,-515.94,0.00024419,2]
[378036913,1754674402886,-492.09,0.00024419,2]
[378036914,1754674402895,-437.71,0.00024419,2]
[378036915,1754674402904,-1269.65,0.00024419,2]
[378036916,1754674402914,-1150.11,0.00024419,2]
[378036917,1754674402925,-704.59,0.00024419,2]
[378036918,1754674402934,-919.49,0.00024419,2]
[378036919,1754674402943,-1259.56,0.00024419,2]
[378036920,1754674402953,-729.76,0.00024419,2]
[378036921,1754674402962,-786.33,0.00024419,2]
[378036922,1754674402972,-508.27,0.00024419,2]
[378036923,1754674402982,-1124.56,0.00024419,2]
[378036924,1754674402992,-400.0,0.00024419,2]
[378036925,1754674403001,-424.0,0.00024419,2]
[378036926,1754674403010,-2507.35,0.00024419,2]
[378036927,1754674403019,-933.94,0.00024419,2]
[378036928,1754674403028,-1309.0,0.00024419,2]
[378036929,1754674403038,-630.93,0.00024419,2]
[378036930,1754674403048,-1219.23,0.00024419,2]
[378036931,1754674403057,-1201.36,0.00024419,2]
[378036932,1754674403066,-1106.53,0.00024419,2]
[378036933,1754674403076,-190.77264818,0.00024419,2]
[378036934,1754674403085,-623.4,0.00024419,2]
[378036935,1754674403094,-738.95,0.00024419,2]
[378036936,1754674403107,-948.04,0.00024419,2]
[378036937,1754674403116,-1232.12,0.00024419,2]
[378036938,1754674403125,-739.75,0.00024419,2]
[378036939,1754674403135,-501.95,0.00024419,2]
[378036940,1754674403145,-1029.5,0.00024419,2]
[378036941,1754674403155,-429.41,0.00024419,2]
[378036942,1754674403164,-1075.7,0.00024419,2]
[378036943,1754674403174,-1017.42,0.00024419,2]
[378036944,1754674403185,-408.09,0.00024419,2]
[378036945,1754674403196,-467.67,0.00024419,2]
[378036946,1754674403205,-22590.06,0.00024419,2]
[378036947,1754674403214,-743.32,0.00024419,2]
[378036948,1754674403223,-1552.35,0.00024419,2]
[378036949,1754674403232,-444.79,0.00024419,2]
[378036950,1754674403241,-466.11,0.00024419,2]
[378036951,1754674403250,-496.93,0.00024419,2]
[378036952,1754674403260,-504.31745533,0.00024419,2]
[378036953,1754674403270,-1260.4,0.00024419,2]
[378036954,1754674403280,-470.18,0.00024419,2]
[378036955,1754674403289,-1009.83,0.00024419,2]
[378036956,1754674403299,-2588.08,0.00024419,2]
[378036957,1754674403307,-641.02,0.00024419,2]
[378036958,1754674403316,-612.57,0.00024419,2]
[378036959,1754674403326,-221.4206711,0.00024419,2]
[378036960,1754674403335,-3797.91,0.00024419,2]
[378036961,1754674403344,-412.85,0.00024419,2]
[378036962,1754674403354,-1241.75,0.00024419,2]
[378036963,1754674403363,-1052.14,0.00024419,2]
[378036964,1754674403372,-1019.52,0.00024419,2]
[378036965,1754674403382,-889.41,0.00024419,2]
[378036966,1754674403390,-739.75,0.00024419,2]
[378036967,1754674403399,-602.24,0.00024419,2]
[378036968,1754674403408,-1630.68,0.00024419,2]
[378036969,1754674403417,-1099.06,0.00024419,2]
[378036970,1754674403426,-2289.35,0.00024419,2]
[378036971,1754674403435,-1124.14,0.00024419,2]
[378036972,1754674403448,-1750.29,0.00024419,2]
[378036973,1754674403457,-702.83,0.00024419,2]
[378036974,1754674403466,-838.76,0.00024419,2]
[378036975,1754674403476,-401.02,0.00024419,2]
[378036976,1754674403486,-1564.85,0.00024419,2]
[378036977,1754674403501,-752.21,0.00024419,2]
[378036978,1754674403510,-1259.02,0.00024419,2]
[378036979,1754674403519,-1360.45,0.00024419,2]
[378036980,1754674403529,-414.37,0.00024419,2]
[378036981,1754674403538,-480.03,0.00024419,2]
[378036982,1754674403547,-457.11,0.00024419,2]
[378036983,1754674403558,-420.84,0.00024419,2]
[378036984,1754674403567,-907.31,0.00024419,2]
[378036985,1754674403576,-447.46,0.00024419,2]
[378036986,1754674403587,-469.13,0.00024419,2]
[378036987,1754674403596,-1156.43,0.00024419,2]
[378036988,1754674403606,-516.43,0.00024419,2]
[378036989,1754674403615,-635.96,0.00024419,2]
[378036990,1754674403625,-841.87,0.00024419,2]
[378036991,1754674403635,-2511.44,0.00024419,2]
[378036992,1754674403645,-414.41,0.00024419,2]
[378036993,1754674403655,-1173.27,0.00024419,2]
[378036994,1754674403665,-909.41,0.00024419,2]
[378036995,1754674403675,-1757.88,0.00024419,2]
[378036996,1754674403685,-633.54,0.00024419,2]
[378036997,1754674403694,-2082.95,0.00024419,2]
[378036998,1754674403704,-400.0,0.00024419,2]
[378036999,1754674403713,-1355.51,0.00024419,2]
[378037000,1754674403723,-748.76,0.00024419,2]
[378037001,1754674403731,-3698.85,0.00024419,2]
[378037002,1754674403740,-1660.57,0.00024419,2]
[378037003,1754674403750,-203.96489301,0.00024419,2]
[378037004,1754674403761,-466.12,0.00024419,2]
[378037005,1754674403770,-2130.8,0.00024419,2]
[378037006,1754674403780,-724.03,0.00024419,2]
[378037007,1754674403789,-420.45,0.00024419,2]
[378037008,1754674403799,-712.97,0.00024419,2]
[378037009,1754674403808,-1000.99,0.00024419,2]
[378037010,1754674403817,-1279.98,0.00024419,2]
[378037011,1754674403826,-1433.19,0.00024419,2]
[378037012,1754674403835,-956.66,0.00024419,2]
[378037013,1754674403845,-825.21,0.00024419,2]
[378037014,1754674403854,-2544.43,0.00024419,2]
[378037015,1754674403863,-1094.31,0.00024419,2]
[378037016,1754674403872,-518.98291814,0.00024419,2]
[378037017,1754674403881,-1301.7,0.00024419,2]
[378037018,1754674403890,-815.06,0.00024419,2]
[378037019,1754674403900,-498.58,0.00024419,2]
[378037020,1754674403909,-545.33,0.00024419,2]
[378037021,1754674403918,-1361.67,0.00024419,2]
[378037022,1754674403927,-3304.91,0.00024419,2]
[378037023,1754674403936,-680.15,0.00024419,2]
[378037024,1754674403946,-1195.76,0.00024419,2]
[378037025,1754674403955,-552.06,0.00024419,2]
[378037026,1754674403964,-442.27,0.00024419,2]
[378037027,1754674403973,-484.27,0.00024419,2]
[378037028,1754674403982,-624.41,0.00024419,2]
[378037029,1754674403991,-844.68,0.00024419,2]
[378037030,1754674404000,-446.42,0.00024419,2]
[378037031,1754674404011,-1015.86,0.00024419,2]
[378037032,1754674404029,-440.75,0.00024419,2]
[378037033,1754674404043,-1182.8,0.00024419,2]
[378037034,1754674404053,-1893.37,0.00024419,2]
[378037035,1754674404064,-2556.32,0.00024419,2]
[378037036,1754674404073,-310.54151535,0.00024419,2]
[378037037,1754674404082,-524.52,0.00024419,2]
[378037038,1754674404091,-6584.79,0.00024419,2]
[378037039,1754674404102,-472.84,0.00024419,2]
[378037040,1754674404112,-520.64,0.00024419,2]
[378037041,1754674404122,-3101.03,0.00024419,2]
[378037042,1754674404131,-732.88,0.00024419,2]
[378037043,1754674404140,-645.58,0.00024419,2]
[378037044,1754674404150,-856.38,0.00024419,2]
[378037045,1754674404159,-4832.78,0.00024419,2]
[378037046,1754674404168,-616.08,0.00024419,2]
[378037047,1754674404178,-627.0,0.00024419,2]
[378037048,1754674404187,-952.86,0.00024419,2]
[378037049,1754674404196,-434.44,0.00024419,2]
[378037050,1754674404205,-480.32,0.00024419,2]
[378037051,1754674404215,-222.08791263,0.00024419,2]
[378037052,1754674404223,-3627.65,0.00024419,2]
[378037053,1754674404233,-803.51,0.00024419,2]
[378037054,1754674404242,-510.44,0.00024419,2]
[378037055,1754674404251,-1841.68,0.00024419,2]
[378037056,1754674404262,-429.23,0.00024419,2]
[378037057,1754674404273,-1163.42,0.00024419,2]
[378037058,1754674404282,-781.89,0.00024419,2]
[378037059,1754674404292,-585.49,0.00024419,2]
[378037060,1754674404301,-467.89,0.00024419,2]
[378037061,1754674404311,-637.96,0.00024419,2]
[378037062,1754674404320,-784.71,0.00024419,2]
[378037063,1754674404329,-971.72,0.00024419,2]
[378037064,1754674404338,-842.16,0.00024419,2]
[378037065,1754674404347,-1364.1,0.00024419,2]
[378037066,1754674404356,-437.29,0.00024419,2]
[378037067,1754674404365,-4087.5,0.00024419,2]
[378037068,1754674404374,-498.13,0.00024419,2]
[378037069,1754674404383,-482.49,0.00024419,2]
[378037070,1754674404392,-4194.96,0.00024419,2]
[378037071,1754674404401,-932.41,0.00024419,2]
[378037072,1754674404411,-467.73,0.00024419,2]
[378037073,1754674404421,-3720.86,0.00024419,2]
[378037074,1754674404429,-694.04,0.00024419,2]
[378037075,1754674404438,-785.65,0.00024419,2]
[378037076,1754674404447,-423.67,0.00024419,2]
[378037077,1754674404456,-1167.59,0.00024419,2]
[378037078,1754674404465,-1073.17,0.00024419,2]
[378037079,1754674404475,-839.14,0.00024419,2]
[378037080,1754674404484,-2564.99,0.00024419,2]
[378037081,1754674404493,-1271.83,0.00024419,2]
[378037082,1754674404502,-695.37,0.00024419,2]
[378037083,1754674404511,-561.21,0.00024419,2]
[378037084,1754674404521,-501.58,0.00024419,2]
[378037085,1754674404531,-1923.32,0.00024419,2]
[378037086,1754674404539,-2534.72,0.00024419,2]
[378037087,1754674404549,-3221.54,0.00024419,2]
[378037088,1754674404559,-1291.31,0.00024419,2]
[378037089,1754674404569,-467.60050796,0.00024419,2]
[378037090,1754674404578,-3151.61,0.00024419,2]
[378037091,1754674404587,-2686.59,0.00024419,2]
[378037092,1754674404597,-1430.86,0.00024419,2]
[378037093,1754674404606,-836.4,0.00024419,2]
[378037094,1754674404615,-2767.77,0.00024419,2]
[378037095,1754674404624,-850.6,0.00024419,2]
[378037096,1754674404635,-421.02,0.00024419,2]
[378037097,1754674404645,-427.53691318,0.00024419,2]
[378037098,1754674404654,-2829.87,0.00024419,2]
[378037099,1754674404666,-3147.45,0.00024419,2]
[378037100,1754674404676,-4079.49,0.00024419,2]
[378037101,1754674404685,-1045.66,0.00024419,2]
[378037102,1754674404695,-3290.29,0.00024421,2]
[378037103,1754674404704,-2369.18,0.00024421,2]
[378037104,1754674404716,-13166.57,0.00024421,2]
[378037105,1754674404725,-1590.7,0.00024421,2]
[378037106,1754674404734,-1258.97,0.00024421,2]
[378037107,1754674404744,-2052.34,0.00024421,2]
[378037108,1754674404754,-508.01,0.00024421,2]
[378037109,1754674404763,-5234.06,0.00024421,2]
[378037110,1754674404773,-2455.21,0.00024421,2]
[378037111,1754674404782,-1846.96,0.00024421,2]
[378037112,1754674404791,-1243.92,0.00024421,2]
[378037113,1754674404800,-1638.01,0.00024421,2]
[378037114,1754674404809,-1639.76,0.00024421,2]
[378037115,1754674404818,-1386.66,0.00024421,2]
[378037116,1754674404827,-2763.15,0.00024421,2]
[378037117,1754674404836,-3536.52,0.00024421,2]
[378037118,1754674404845,-2140.87,0.00024421,2]
[378037119,1754674404855,-1711.31,0.00024421,2]
[378037120,1754674404864,-449.95,0.00024421,2]
[378037121,1754674404873,-1075.69,0.0002443,2]
[378037122,1754674404883,-315.37,0.00024445,2]
[378037123,1754674404892,-5323.28461975,0.000245,2]
[378037124,1754674404901,-5323.28461957,0.000245,2]
[378037125,1754674404911,-5323.28461957,0.000245,2]
[378037126,1754674404920,-7380.8943616,0.0002451,2]
[378037127,1754674404930,-3730.04990672,0.00024593,2]
[378037128,1754674404939,-213.70748722,0.00024593,2]
[378037129,1754674404948,-1335.79154779,0.00024595,2]
[378037130,1754674404958,-163.31247404,0.0002465,2]
[378037131,1754674404967,-583.59294015,0.0002465,2]
[378037132,1754674404977,-200.0,0.00024657,2]
[378037133,1754674404986,-300.0,0.00024657,2]
[378037134,1754674404996,-300.0,0.00024657,2]
[378037135,1754674405007,-300.0,0.00024657,2]
[378037136,1754674405017,-300.0,0.00024657,2]
[378037137,1754674405027,-300.0,0.00024657,2]
[378037138,1754674405038,-300.0,0.00024657,2]
[378037139,1754674405049,-300.0,0.00024657,2]
[378037140,1754674405059,-300.0,0.00024657,2]
[378037141,1754674405069,-300.0,0.00024657,2]
[378037142,1754674405079,-300.0,0.00024657,2]
[378037143,1754674405089,-300.0,0.00024657,2]
[378037144,1754674405100,-300.0,0.00024657,2]
[378037145,1754674405111,-300.0,0.00024657,2]
[378037146,1754674405121,-300.0,0.00024657,2]
[378037147,1754674405131,-300.0,0.00024657,2]
[378037148,1754674405141,-300.0,0.00024657,2]
[378037149,1754674405151,-300.0,0.00024657,2]
[378037150,1754674405161,-354.03245998,0.00024657,2]
[378037151,1754674405171,-150.0,0.00024658,2]
[378037152,1754674405181,-256.91114669,0.00024658,2]
[378037153,1754674405191,-152.0,0.00024658,2]
[378037154,1754674405199,-151.0,0.00024658,7]
[378037155,1754674405209,-151.0,0.00024658,7]
[378037156,1754674405218,-151.0,0.00024658,7]
[378037157,1754674405227,-151.0,0.00024658,7]
[378037158,1754674405236,-151.0,0.00024658,7]
[378037159,1754674405245,-151.0,0.00024658,7]
[378037160,1754674405255,-151.0,0.00024658,7]
[378037161,1754674405265,-151.0,0.00024658,7]
[378037162,1754674405274,-187.19869,0.00024658,7]
[378037163,1754674405284,-151.0,0.00024658,7]
[378037164,1754674405293,-151.0,0.00024658,7]
[378037165,1754674405304,-151.0,0.00024658,7]
[378037166,1754674405313,-151.0,0.00024658,7]
[378037167,1754674405323,-151.0,0.00024658,7]
[378037168,1754674405333,-151.0,0.00024658,7]
[378037169,1754674405343,-151.0,0.00024658,7]
[378037170,1754674405353,-151.0,0.00024658,7]
[378037171,1754674405363,-151.0,0.00024658,7]
[378037172,1754674405373,-151.869605,0.00024658,7]
[378037173,1754674405383,-151.0,0.00024658,7]
[378037174,1754674405393,-1000.0,0.00024658,2]
[378037175,1754674405403,-331.78,0.00024658,2]
[378037176,1754674405413,-1100.0,0.00024658,2]
[378037177,1754674405424,-500.0,0.00024658,2]
[378037178,1754674405435,-217.15233878,0.00024658,2]
[378037179,1754674405445,-661.3215095,0.00024692,2]
[378037180,1754674405456,-2955.1097008,0.00024692,2]
[378037181,1754674405466,-2275.56713735,0.00024692,2]
[378037182,1754674405477,-946.53080368,0.00024692,2]
[378037183,1754674405488,-7691.85023519,0.00024692,2]
[378037184,1754674405498,-848.5,0.00024692,2]
[378037185,1754674405508,-1032.98011823,0.00024692,2]
[378037186,1754674405517,-1856.09043834,0.00024692,2]
[378037187,1754674405528,-600.23666972,0.00024692,2]
[378037188,1754674405538,-676.07506012,0.00024692,2]
[378037189,1754674405548,-5291.24838738,0.00024692,2]
[378037190,1754674405557,-3569.99520594,0.00024692,2]
[378037191,1754674405567,-2731.24119063,0.00024692,2]
[378037192,1754674405577,-643.42304168,0.00024692,2]
[378037193,1754674405587,-821.99182949,0.00024692,2]
[378037194,1754674405597,-1935.32251277,0.00024692,2]
[378037195,1754674405606,-775.17602961,0.00024692,2]
[378037196,1754674405616,-538.57161576,0.00024692,2]
[378037197,1754674405626,-448.01484801,0.00024692,2]
[378037198,1754674405636,-948.49258377,0.00024692,2]
[378037199,1754674405778,-1803.13112451,0.00024692,2]
[378037200,1754674405788,-980.03159884,0.00024692,2]
[378037201,1754674405797,-475.21,0.00024693,2]
[378037202,1754674405807,-156.799685,0.00024693,2]
[378037203,1754674405817,-183.659282,0.00024693,2]
[378037204,1754674405827,-613.14963967,0.00024693,2]
[378037205,1754674405837,-487.73610934,0.00024693,2]
[378037206,1754674405847,-470.28353766,0.00024693,2]
[378037207,1754674405857,-580.29778854,0.00024693,2]
[378037208,1754674405867,-462.3454013,0.00024693,2]
[378037209,1754674405878,-479.85148533,0.00024693,2]
[378037210,1754674405889,-568.14911697,0.00024693,2]
[378037211,1754674405900,-421.61082998,0.00024693,2]
[378037212,1754674405910,-418.81933379,0.00024693,2]
[378037213,1754674405921,-504.54510232,0.00024693,2]
[378037214,1754674405931,-700.94025645,0.00024693,2]
[378037215,1754674405941,-520.87,0.00024693,2]
[378037216,1754674405951,-484.99223167,0.00024693,2]
[378037217,1754674405961,-432.34251019,0.00024693,2]
[378037218,1754674405971,-456.59258397,0.00024693,2]
[378037219,1754674405981,-1178.30366755,0.00024693,2]
[378037220,1754674405990,-312.04945905,0.00024693,2]
[378037221,1754674406001,-534.77,0.00024693,2]
[378037222,1754674406011,-435.4426121,0.00024693,2]
[378037223,1754674406021,-4517.84384161,0.00024693,2]
[378037224,1754674406032,-477.76361177,0.00024693,2]
[378037225,1754674406043,-4062.18821496,0.00024693,2]
[378037226,1754674406054,-2162.46933559,0.00024693,2]
[378037227,1754674406065,-788.68902728,0.00024693,2]
[378037228,1754674406075,-735.56,0.00024693,2]
[378037229,1754674406085,-1368.31594081,0.00024693,2]
[378037230,1754674406096,-606.66960044,0.00024693,2]
[378037231,1754674406110,-691.86869914,0.00024693,2]
[378037232,1754674406120,-504.24370125,0.00024693,2]
[378037233,1754674406130,-672.84155251,0.00024693,2]
[378037234,1754674406140,-711.68115974,0.00024693,2]
[378037235,1754674406150,-1187.94444124,0.00024693,2]
[378037236,1754674406160,-450.81485671,0.00024693,2]
[378037237,1754674406169,-767.84496481,0.00024693,2]
[378037238,1754674406180,-692.39896913,0.00024693,2]
[378037239,1754674406191,-411.4540095,0.00024693,2]
[378037240,1754674406200,-460.35964458,0.00024693,2]
[378037241,1754674406210,-680.4,0.00024693,2]
[378037242,1754674406220,-418.65663213,0.00024693,2]
[378037243,1754674406230,-557.20493618,0.00024693,2]
[378037244,1754674406240,-1471.86394045,0.00024693,2]
[378037245,1754674406250,-1053.67569851,0.00024693,2]
[378037246,1754674406259,-436.54780531,0.00024693,2]
[378037247,1754674406270,-592.00795608,0.00024693,2]
[378037248,1754674406283,-1359.76792375,0.00024693,2]
[378037249,1754674406295,-439.50697881,0.00024693,2]
[378037250,1754674406306,-820.60590861,0.00024693,2]
[378037251,1754674406317,-444.97022524,0.00024693,2]
[378037252,1754674406328,-540.16,0.00024693,2]
[378037253,1754674406339,-287.9004456,0.00024693,2]
[378037254,1754674406349,-1098.40801369,0.00024693,2]
[378037255,1754674406360,-1065.37126444,0.00024693,2]
[378037256,1754674406370,-475.14742088,0.00024693,2]
[378037257,1754674406379,-493.49246944,0.00024693,2]
[378037258,1754674406389,-505.49534283,0.00024693,2]
[378037259,1754674406399,-664.1899966,0.00024693,2]
[378037260,1754674406408,-664.69020688,0.00024693,2]
[378037261,1754674406418,-412.72,0.00024693,2]
[378037262,1754674406429,-552.36191343,0.00024693,2]
[378037263,1754674406440,-795.76174564,0.00024693,2]
[378037264,1754674406450,-1009.88807625,0.00024693,2]
[378037265,1754674406460,-496.67833586,0.00024693,2]
[378037266,1754674406471,-808.5523787,0.00024693,2]
[378037267,1754674406481,-759.14525802,0.00024693,2]
[378037268,1754674406491,-794.21987663,0.00024693,2]
[378037269,1754674406501,-485.20757381,0.00024693,2]
[378037270,1754674406511,-406.02496821,0.00024693,2]
[378037271,1754674406521,-1155.07433856,0.00024693,2]
[378037272,1754674406533,-860.47023969,0.00024693,2]
[378037273,1754674406543,-521.18588022,0.00024693,2]
[378037274,1754674406554,-497.46705374,0.00024693,2]
[378037275,1754674406565,-202.45257948,0.00024693,2]
[378037276,1754674406575,-643.24531561,0.00024693,2]
[378037277,1754674406586,-676.02736231,0.00024693,2]
[378037278,1754674406596,-489.22,0.00024693,2]
[378037279,1754674406607,-760.89122638,0.00024693,2]
[378037280,1754674406616,-1322.99235842,0.00024693,2]
[378037281,1754674406626,-576.85055392,0.00024693,2]
[378037282,1754674406638,-516.07430289,0.00024693,2]
[378037283,1754674406648,-492.22595828,0.00024693,2]
[378037284,1754674406658,-437.7304481,0.00024693,2]
[378037285,1754674406668,-1150.3032436,0.00024693,2]
[378037286,1754674406677,-704.71394092,0.00024693,2]
[378037287,1754674406687,-919.53,0.00024693,2]
[378037288,1754674406697,-1269.83938038,0.00024693,2]
[378037289,1754674406706,-1259.65810126,0.00024693,2]
[378037290,1754674406716,-729.81173668,0.00024693,2]
[378037291,1754674406726,-786.51137449,0.00024693,2]
[378037292,1754674406736,-508.29,0.00024693,2]
[378037293,1754674406746,-1124.77160725,0.00024693,2]
[378037294,1754674406755,-376.52528645,0.00024693,2]
[378037295,1754674406765,-424.16209082,0.00024693,2]
[378037296,1754674406776,-933.94166557,0.00024693,2]
[378037297,1754674406787,-1309.1859883,0.00024693,2]
[378037298,1754674406796,-631.0330647,0.00024693,2]
[378037299,1754674406805,-1219.4,0.00024693,2]
[378037300,1754674406815,-1201.53814175,0.00024693,2]
[378037301,1754674406825,-1106.75109436,0.00024693,2]
[378037302,1754674406834,-623.57364206,0.00024693,2]
[378037303,1754674406844,-739.16536231,0.00024693,2]
[378037304,1754674406854,-948.23586343,0.00024693,2]
[378037305,1754674406863,-1232.12459286,0.00024693,2]
[378037306,1754674406873,-739.86765874,0.00024693,2]
[378037307,1754674406890,-502.14766087,0.00024693,2]
[378037308,1754674406904,-1029.67720385,0.00024693,2]
[378037309,1754674406913,-429.48288662,0.00024693,2]
[378037310,1754674406923,-1075.79043249,0.00024693,2]
[378037311,1754674406933,-1017.56722187,0.00024693,2]
[378037312,1754674406943,-408.28324564,0.00024693,2]
[378037313,1754674406953,-467.8,0.00024693,2]
[378037314,1754674406963,-1552.45791118,0.00024693,2]
[378037315,1754674406973,-743.52268855,0.00024693,2]